[Event "The Kvibergspelen 2023"]
[Site "Kviberg Park Hotel & Conference, Krutvagen 2, Gothenburg, Sweden"]
[Date "2023.09.15"]
[Round "3.19"]
[White "Valle, Lorenzo"]
[Black "Jarlskov, Daniel Tuk Hartso"]
[Result "0-1"]
[TimeControl "15 minutes + 5 seconds per move from move one (Round 1 - 4) / 90 minutes + 30 seconds per move from move one (Round 5 - 8)"]
[WhiteFideId "849715"]
[BlackFideId "1463896"]
[WhiteElo "1652"]
[BlackElo "2038"]

1. e4 {[%clk 00:15:07]} {[%emt 00:00:02]} c6 {[%clk 00:15:09]} {[%emt
00:00:01]} 2. d3 {[%clk 00:15:09]} {[%emt 00:00:03]} d5 {[%clk 00:15:12]}
{[%emt 00:00:02]} 3. Nd2 {[%clk 00:15:13]} {[%emt 00:00:01]} dxe4 {[%clk
00:15:03]} {[%emt 00:00:14]} 4. dxe4 {[%clk 00:15:16]} {[%emt 00:00:02]} Nf6
{[%clk 00:15:02]} {[%emt 00:00:06]} 5. Ngf3 {[%clk 00:15:10]} {[%emt 00:00:11]}
Bg4 {[%clk 00:15:00]} {[%emt 00:00:07]} 6. h3 {[%clk 00:14:40]} {[%emt
00:00:35]} Bh5 {[%clk 00:15:00]} {[%emt 00:00:05]} 7. Bc4 {[%clk 00:14:35]}
{[%emt 00:00:11]} e6 {[%clk 00:15:03]} {[%emt 00:00:02]} 8. O-O {[%clk
00:14:33]} {[%emt 00:00:06]} Bc5 {[%clk 00:15:03]} {[%emt 00:00:06]} 9. Qe2
{[%clk 00:14:00]} {[%emt 00:00:38]} O-O {[%clk 00:14:58]} {[%emt 00:00:10]} 10.
Rd1 {[%clk 00:13:45]} {[%emt 00:00:18]} Qe7 {[%clk 00:14:52]} {[%emt 00:00:12]}
11. Nf1 {[%clk 00:13:41]} {[%emt 00:00:09]} Nbd7 {[%clk 00:14:19]} {[%emt
00:00:38]} 12. Bg5 {[%clk 00:12:34]} {[%emt 00:01:12]} Qe8 {[%clk 00:09:23]}
{[%emt 00:05:01]} 13. Ng3 {[%clk 00:11:56]} {[%emt 00:00:43]} Bxf3 {[%clk
00:08:27]} {[%emt 00:01:02]} 14. Qxf3 {[%clk 00:11:19]} {[%emt 00:00:41]} Ne5
{[%clk 00:08:31]} {[%emt 00:00:02]} 15. Qe2 {[%clk 00:11:12]} {[%emt 00:00:11]}
Nxc4 {[%clk 00:07:00]} {[%emt 00:01:38]} 16. Qxc4 {[%clk 00:11:14]} {[%emt
00:00:02]} Be7 {[%clk 00:07:03]} {[%emt 00:00:01]} 17. Be3 {[%clk 00:11:07]}
{[%emt 00:00:12]} Qc8 {[%clk 00:05:25]} {[%emt 00:01:43]} 18. Qe2 {[%clk
00:11:09]} {[%emt 00:00:03]} Qc7 {[%clk 00:04:39]} {[%emt 00:00:52]} 19. c4
{[%clk 00:09:54]} {[%emt 00:01:19]} Rfd8 {[%clk 00:04:08]} {[%emt 00:00:37]} 20.
Kf1 {[%clk 00:08:05]} {[%emt 00:01:53]} Bd6 {[%clk 00:03:39]} {[%emt 00:00:33]}
21. Bd4 {[%clk 00:07:30]} {[%emt 00:00:40]} Be5 {[%clk 00:02:55]} {[%emt
00:00:51]} 22. Bxe5 {[%clk 00:07:14]} {[%emt 00:00:21]} Qxe5 {[%clk 00:02:58]}
{[%emt 00:00:02]} 23. b3 {[%clk 00:06:50]} {[%emt 00:00:28]} h6 {[%clk
00:02:52]} {[%emt 00:00:12]} 24. Qe3 {[%clk 00:05:42]} {[%emt 00:01:12]} Nh5
{[%clk 00:01:54]} {[%emt 00:01:02]} 25. Nxh5 {[%clk 00:05:31]} {[%emt
00:00:17]} Qxh5 {[%clk 00:01:58]} {[%emt 00:00:01]} 26. Qe2 {[%clk 00:05:28]}
{[%emt 00:00:08]} Qe5 {[%clk 00:02:02]} {[%emt 00:00:01]} 27. Kg1 {[%clk
00:05:11]} {[%emt 00:00:23]} c5 {[%clk 00:02:02]} {[%emt 00:00:05]} 28. Rxd8+
{[%clk 00:04:59]} {[%emt 00:00:16]} Rxd8 {[%clk 00:02:06]} {[%emt 00:00:02]} 29.
Rd1 {[%clk 00:04:40]} {[%emt 00:00:24]} Rd4 {[%clk 00:02:10]} {[%emt 00:00:01]}
30. Rxd4 {[%clk 00:03:55]} {[%emt 00:00:49]} Qxd4 {[%clk 00:02:14]} {[%emt
00:00:01]} 31. g3 {[%clk 00:03:49]} {[%emt 00:00:11]} Kh7 {[%clk 00:02:05]}
{[%emt 00:00:14]} 32. Kg2 {[%clk 00:03:47]} {[%emt 00:00:08]} g6 {[%clk
00:01:54]} {[%emt 00:00:16]} 33. Qf3 {[%clk 00:03:41]} {[%emt 00:00:11]} Kg7
{[%clk 00:01:57]} {[%emt 00:00:02]} 34. Qe2 {[%clk 00:03:45]} {[%emt 00:00:01]}
h5 {[%clk 00:01:57]} {[%emt 00:00:04]} 35. f4 {[%clk 00:03:47]} {[%emt
00:00:03]} Kf8 {[%clk 00:01:43]} {[%emt 00:00:19]} 36. Kf1 {[%clk 00:02:59]}
{[%emt 00:00:53]} Qa1+ {[%clk 00:01:41]} {[%emt 00:00:07]} 37. Kf2 {[%clk
00:03:02]} {[%emt 00:00:02]} Qd4+ {[%clk 00:01:45]} {[%emt 00:00:02]} 38. Kf1
{[%clk 00:03:06]} {[%emt 00:00:01]} Qd6 {[%clk 00:01:38]} {[%emt 00:00:11]} 39.
Ke1 {[%clk 00:02:48]} {[%emt 00:00:23]} h4 {[%clk 00:01:16]} {[%emt 00:00:28]}
40. gxh4 {[%clk 00:02:19]} {[%emt 00:00:33]} Qxf4 {[%clk 00:01:19]} {[%emt
00:00:02]} 41. Qg4 {[%clk 00:02:23]} {[%emt 00:00:01]} Qe3+ {[%clk 00:01:03]}
{[%emt 00:00:21]} 42. Kd1 {[%clk 00:02:06]} {[%emt 00:00:22]} Qf2 {[%clk
00:01:02]} {[%emt 00:00:06]} 43. h5 {[%clk 00:01:55]} {[%emt 00:00:15]} gxh5
{[%clk 00:00:53]} {[%emt 00:00:18]} 44. Qxh5 {[%clk 00:01:50]} {[%emt
00:00:10]} Qd4+ {[%clk 00:00:45]} {[%emt 00:00:12]} 45. Kc2 {[%clk 00:01:43]}
{[%emt 00:00:13]} Qxe4+ {[%clk 00:00:48]} {[%emt 00:00:01]} 46. Kb2 {[%clk
00:01:46]} Qd4+ {[%clk 00:00:36]} {[%emt 00:00:20]} 47. Kb1 {[%clk 00:01:45]}
{[%emt 00:00:16]} Ke7 {[%clk 00:00:26]} {[%emt 00:00:29]} 48. Qg5+ {[%emt
00:00:11]} Kd6 {[%clk 00:00:25]} {[%emt 00:00:11]} 49. h4 {[%clk 00:01:36]}
{[%emt 00:00:14]} Qd1+ {[%clk 00:00:24]} {[%emt 00:00:04]} 50. Kb2 {[%clk
00:01:39]} {[%emt 00:00:10]} Qe2+ {[%clk 00:00:28]} 51. Ka3 {[%clk 00:01:36]}
{[%emt 00:00:20]} Qe5 {[%clk 00:00:16]} {[%emt 00:00:14]} 52. Qd8+ {[%clk
00:01:32]} {[%emt 00:00:10]} Kc6 {[%clk 00:00:21]} 53. Qe7 {[%clk 00:01:16]}
{[%emt 00:00:15]} Qf4 {[%clk 00:00:16]} {[%emt 00:00:13]} 54. Kb2 {[%clk
00:01:01]} {[%emt 00:00:24]} Qe5+ {[%clk 00:00:16]} {[%emt 00:00:09]} 55. Kb1
{[%clk 00:01:04]} Qf5+ {[%clk 00:00:20]} 56. Kb2 {[%clk 00:01:07]} {[%emt
00:00:02]} e5 {[%clk 00:00:23]} {[%emt 00:00:02]} 57. Kc3 {[%clk 00:00:49]}
{[%emt 00:00:24]} Qf3+ {[%clk 00:00:25]} 58. Kd2 {[%clk 00:00:46]} {[%emt
00:00:09]} Qf4+ {[%clk 00:00:29]} 59. Kc2 {[%clk 00:00:47]} {[%emt 00:00:02]}
e4 {[%clk 00:00:31]} 60. h5 {[%clk 00:00:48]} {[%emt 00:00:07]} e3 {[%clk
00:00:25]} {[%emt 00:00:03]} 61. h6 {[%clk 00:00:35]} {[%emt 00:00:08]} Qxh6
{[%clk 00:00:17]} {[%emt 00:00:08]} 62. Qxf7 {[%clk 00:00:37]} Qh2+ {[%clk
00:00:21]} 63. Kd3 {[%clk 00:00:39]} Qd2+ {[%clk 00:00:25]} 64. Ke4 {[%clk
00:00:41]} e2 {[%clk 00:00:26]} 65. Qe6+ {[%clk 00:00:43]} Qd6 {[%clk
00:00:24]} 66. Qe8+ {[%clk 00:00:45]} Qd7 {[%emt 00:00:01]} 67. Qg6+ {[%clk
00:00:41]} {[%emt 00:00:06]} Qd6 {[%clk 00:00:18]} {[%emt 00:00:08]} 68. Qg1
{[%clk 00:00:27]} {[%emt 00:00:19]} e1=Q+ {[%clk 00:00:17]} {[%emt 00:00:06]}
0-1

[Event "The Kvibergspelen 2023"]
[Site "Kviberg Park Hotel & Conference, Krutvagen 2, Gothenburg, Sweden"]
[Date "2023.09.15"]
[Round "3.20"]
[White "Berg, Roy"]
[Black "Herrman, Jan"]
[Result "1/2-1/2"]
[TimeControl "15 minutes + 5 seconds per move from move one (Round 1 - 4) / 90 minutes + 30 seconds per move from move one (Round 5 - 8)"]
[WhiteFideId "1711458"]
[BlackFideId "1731882"]
[WhiteElo "1954"]
[BlackElo "1875"]

1. d4 {[%clk 00:15:08]} Nf6 {[%clk 00:15:07]} {[%emt 00:00:03]} 2. c4 {[%clk
00:15:12]} {[%emt 00:00:02]} c5 {[%clk 00:15:05]} {[%emt 00:00:08]} 3. d5
{[%clk 00:15:14]} {[%emt 00:00:03]} b5 {[%clk 00:15:04]} {[%emt 00:00:05]} 4.
Qc2 {[%clk 00:15:09]} {[%emt 00:00:10]} bxc4 {[%clk 00:15:01]} {[%emt
00:00:08]} 5. e4 {[%clk 00:15:11]} {[%emt 00:00:03]} d6 {[%clk 00:15:04]}
{[%emt 00:00:02]} 6. Bxc4 {[%clk 00:15:07]} {[%emt 00:00:09]} g6 {[%clk
00:15:06]} {[%emt 00:00:03]} 7. Nf3 {[%clk 00:14:59]} {[%emt 00:00:12]} Bg7
{[%clk 00:15:09]} {[%emt 00:00:03]} 8. h3 {[%clk 00:14:53]} {[%emt 00:00:11]}
O-O {[%clk 00:15:07]} {[%emt 00:00:07]} 9. O-O {[%clk 00:14:55]} {[%emt
00:00:02]} Ba6 {[%clk 00:14:38]} {[%emt 00:00:35]} 10. Na3 {[%clk 00:14:22]}
{[%emt 00:00:38]} Bxc4 {[%clk 00:14:35]} {[%emt 00:00:08]} 11. Nxc4 {[%clk
00:14:24]} {[%emt 00:00:02]} Nbd7 {[%clk 00:14:31]} {[%emt 00:00:09]} 12. Rd1
{[%clk 00:12:54]} {[%emt 00:01:35]} Nb6 {[%clk 00:11:39]} {[%emt 00:02:58]} 13.
Bd2 {[%clk 00:10:29]} {[%emt 00:02:29]} Nxc4 {[%clk 00:11:02]} {[%emt
00:00:43]} 14. Qxc4 {[%clk 00:10:32]} {[%emt 00:00:02]} Qb6 {[%clk 00:10:13]}
{[%emt 00:00:54]} 15. Bc3 {[%clk 00:10:16]} {[%emt 00:00:21]} Rab8 {[%clk
00:09:51]} {[%emt 00:00:28]} 16. Rd2 {[%clk 00:09:35]} {[%emt 00:00:45]} Qb5
{[%clk 00:09:37]} {[%emt 00:00:19]} 17. Qe2 {[%clk 00:09:01]} {[%emt 00:00:38]}
Qxe2 {[%clk 00:08:02]} {[%emt 00:01:41]} 18. Rxe2 {[%clk 00:09:04]} {[%emt
00:00:02]} Rb5 {[%clk 00:07:54]} {[%emt 00:00:12]} 19. Rd1 {[%clk 00:08:36]}
{[%emt 00:00:33]} Nd7 {[%clk 00:05:22]} {[%emt 00:02:39]} 20. Bxg7 {[%clk
00:08:29]} {[%emt 00:00:13]} Kxg7 {[%clk 00:05:25]} {[%emt 00:00:02]} 21. b3
{[%clk 00:06:01]} {[%emt 00:02:32]} f6 {[%clk 00:05:21]} {[%emt 00:00:09]} 22.
Rc1 {[%clk 00:05:32]} {[%emt 00:00:34]} Rfb8 {[%clk 00:04:40]} {[%emt
00:00:45]} 23. Nd2 {[%clk 00:04:57]} {[%emt 00:00:41]} Ne5 {[%emt 00:01:09]} 24.
Rc3 {[%clk 00:04:54]} {[%emt 00:00:06]} Rb4 {[%clk 00:03:11]} {[%emt 00:00:32]}
25. f4 {[%clk 00:04:43]} {[%emt 00:00:16]} Nd7 {[%clk 00:03:08]} {[%emt
00:00:08]} 26. Nc4 {[%clk 00:04:36]} {[%emt 00:00:12]} R4b5 {[%clk 00:01:16]}
{[%emt 00:01:58]} 27. Ree3 {[%clk 00:04:09]} {[%emt 00:00:31]} Nb6 {[%clk
00:01:11]} {[%emt 00:00:10]} 28. Kf2 {[%clk 00:02:47]} {[%emt 00:01:27]} Nxc4
{[%clk 00:01:14]} {[%emt 00:00:02]} 29. Rxc4 {[%clk 00:02:50]} {[%emt
00:00:02]} Kf7 {[%clk 00:01:15]} {[%emt 00:00:05]} 30. e5 {[%clk 00:02:47]}
{[%emt 00:00:08]} Re8 {[%clk 00:00:31]} {[%emt 00:00:49]} 31. Ra4 {[%clk
00:02:31]} {[%emt 00:00:21]} Rb7 {[%clk 00:00:28]} {[%emt 00:00:08]} 32. e6+
{[%clk 00:02:13]} {[%emt 00:00:23]} Kf8 {[%clk 00:00:30]} {[%emt 00:00:03]} 33.
Ree4 {[%clk 00:02:12]} {[%emt 00:00:05]} Ra8 {[%clk 00:00:31]} {[%emt
00:00:05]} 34. Ra6 {[%clk 00:02:14]} {[%emt 00:00:02]} Rb6 {[%clk 00:00:16]}
{[%emt 00:00:21]} 35. Rea4 {[%clk 00:02:14]} {[%emt 00:00:04]} Rxa6 {[%emt
00:00:02]} 36. Rxa6 {[%clk 00:02:18]} {[%emt 00:00:01]} Ke8 {[%clk 00:00:24]}
37. g4 {[%clk 00:02:08]} {[%emt 00:00:15]} Kd8 {[%clk 00:00:28]} {[%emt
00:00:01]} 38. Ra4 {[%clk 00:02:02]} {[%emt 00:00:11]} a5 {[%clk 00:00:29]}
{[%emt 00:00:05]} 39. h4 {[%clk 00:01:57]} {[%emt 00:00:11]} Kc7 {[%clk
00:00:33]} 40. Kf3 {[%clk 00:01:51]} {[%emt 00:00:13]} Kb6 {[%clk 00:00:38]} 41.
Rc4 {[%clk 00:01:52]} {[%emt 00:00:02]} Kb5 {[%clk 00:00:42]} {[%emt 00:00:01]}
42. a4+ {[%clk 00:01:54]} {[%emt 00:00:05]} Kb6 {[%clk 00:00:44]} {[%emt
00:00:01]} 43. Rc3 {[%clk 00:01:57]} {[%emt 00:00:01]} Ka6 {[%clk 00:00:48]}
{[%emt 00:00:02]} 44. f5 {[%clk 00:01:50]} {[%emt 00:00:11]} gxf5 {[%clk
00:00:49]} {[%emt 00:00:05]} 45. gxf5 {[%clk 00:01:53]} {[%emt 00:00:02]} Rg8
{[%clk 00:00:53]} 46. Kf4 {[%clk 00:01:52]} {[%emt 00:00:09]} Kb6 {[%clk
00:00:53]} {[%emt 00:00:05]} 47. Rf3 {[%emt 00:01:46]} 1/2-1/2

[Event "The Kvibergspelen 2023"]
[Site "Kviberg Park Hotel & Conference, Krutvagen 2, Gothenburg, Sweden"]
[Date "2023.09.15"]
[Round "4.1"]
[White "Poley, Vladimir"]
[Black "Holm, Kristian Stuvik"]
[Result "0-1"]
[TimeControl "15 minutes + 5 seconds per move from move one (Round 1 - 4) / 90 minutes + 30 seconds per move from move one (Round 5 - 8)"]
[WhiteTitle "IM"]
[BlackTitle "IM"]
[WhiteFideId "13500090"]
[BlackFideId "1508083"]
[WhiteElo "2284"]
[BlackElo "2488"]

1. Nf3 {[%clk 00:15:05]} {[%emt 00:03:22]} d5 {[%clk 00:14:47]} {[%emt
00:00:27]} 2. g3 {[%clk 00:15:12]} {[%emt 00:00:02]} g6 {[%clk 00:14:48]}
{[%emt 00:00:03]} 3. Bg2 {[%clk 00:15:10]} {[%emt 00:00:08]} Bg7 {[%clk
00:14:52]} {[%emt 00:00:01]} 4. d4 {[%clk 00:15:07]} {[%emt 00:00:08]} Nf6
{[%clk 00:14:28]} {[%emt 00:00:29]} 5. O-O {[%clk 00:15:09]} {[%emt 00:00:03]}
O-O {[%clk 00:14:23]} {[%emt 00:00:09]} 6. Nbd2 {[%clk 00:14:59]} {[%emt
00:00:15]} a5 {[%clk 00:14:21]} {[%emt 00:00:07]} 7. c4 {[%clk 00:14:57]}
{[%emt 00:00:09]} c6 {[%clk 00:13:59]} {[%emt 00:00:26]} 8. e3 {[%clk
00:14:56]} {[%emt 00:00:05]} a4 {[%clk 00:13:56]} {[%emt 00:00:08]} 9. Qe2
{[%clk 00:14:46]} {[%emt 00:00:16]} Bf5 {[%clk 00:13:28]} {[%emt 00:00:33]} 10.
Ne5 {[%clk 00:14:35]} {[%emt 00:00:16]} Nbd7 {[%clk 00:13:25]} {[%emt
00:00:08]} 11. cxd5 {[%clk 00:14:29]} {[%emt 00:00:11]} cxd5 {[%clk 00:13:13]}
{[%emt 00:00:18]} 12. Nxd7 {[%clk 00:14:11]} {[%emt 00:00:23]} Qxd7 {[%clk
00:12:04]} {[%emt 00:01:13]} 13. Nf3 {[%clk 00:14:14]} {[%emt 00:00:02]} Rfc8
{[%clk 00:12:01]} {[%emt 00:00:08]} 14. Ne5 {[%clk 00:14:11]} {[%emt 00:00:08]}
Qd6 {[%clk 00:09:59]} {[%emt 00:02:07]} 15. g4 {[%clk 00:14:03]} {[%emt
00:00:13]} Be6 {[%clk 00:09:56]} {[%emt 00:00:07]} 16. f4 {[%clk 00:13:44]}
{[%emt 00:00:23]} Rc7 {[%clk 00:09:19]} {[%emt 00:00:44]} 17. f5 {[%clk
00:13:11]} {[%emt 00:00:37]} Bd7 {[%clk 00:08:34]} {[%emt 00:00:51]} 18. g5
{[%clk 00:08:53]} {[%emt 00:04:23]} Ne4 {[%clk 00:08:32]} {[%emt 00:00:07]} 19.
fxg6 {[%clk 00:07:39]} {[%emt 00:01:19]} fxg6 {[%clk 00:08:33]} {[%emt
00:00:03]} 20. Nf7 {[%clk 00:07:40]} {[%emt 00:00:05]} Qb4 {[%clk 00:07:15]}
{[%emt 00:01:24]} 21. Bxe4 {[%clk 00:07:23]} {[%emt 00:00:21]} dxe4 {[%clk
00:07:16]} {[%emt 00:00:05]} 22. Bd2 {[%clk 00:07:24]} {[%emt 00:00:04]} Qb5
{[%clk 00:06:39]} {[%emt 00:00:43]} 23. Qg2 {[%clk 00:06:49]} {[%emt 00:00:39]}
Rc2 {[%clk 00:05:22]} {[%emt 00:01:22]} 24. Nh6+ {[%clk 00:06:23]} {[%emt
00:00:30]} Bxh6 {[%clk 00:05:19]} {[%emt 00:00:08]} 25. gxh6 {[%clk 00:06:27]}
{[%emt 00:00:01]} Bf5 {[%clk 00:04:43]} {[%emt 00:00:42]} 26. Rf2 {[%clk
00:05:50]} {[%emt 00:00:42]} Rxb2 {[%clk 00:03:49]} {[%emt 00:00:59]} 27. Raf1
{[%clk 00:05:24]} {[%emt 00:00:31]} Rf8 {[%clk 00:03:35]} {[%emt 00:00:19]} 28.
a3 {[%clk 00:05:05]} {[%emt 00:00:24]} Rf6 {[%clk 00:01:23]} {[%emt 00:02:17]}
29. Qg3 {[%clk 00:04:49]} {[%emt 00:00:21]} Qd7 {[%clk 00:01:01]} {[%emt
00:00:27]} 30. Qb8+ {[%clk 00:04:21]} {[%emt 00:00:33]} Qc8 {[%clk 00:01:05]}
{[%emt 00:00:01]} 31. Qe5 {[%clk 00:04:25]} {[%emt 00:00:01]} Qe6 {[%clk
00:00:57]} {[%emt 00:00:13]} 32. Qb8+ {[%clk 00:03:52]} {[%emt 00:00:37]} Qc8
{[%clk 00:01:01]} {[%emt 00:00:02]} 33. Qe5 {[%clk 00:03:18]} {[%emt 00:00:39]}
Qe6 {[%clk 00:01:05]} {[%emt 00:00:01]} 34. Qa5 {[%clk 00:03:02]} {[%emt
00:00:21]} Qd7 {[%clk 00:00:37]} {[%emt 00:00:34]} 35. Qa8+ {[%clk 00:02:40]}
{[%emt 00:00:26]} Rf8 {[%clk 00:00:39]} {[%emt 00:00:02]} 36. Qa7 {[%clk
00:02:38]} {[%emt 00:00:05]} Qb5 {[%clk 00:00:19]} {[%emt 00:00:28]} 37. Qc5
{[%clk 00:02:11]} {[%emt 00:00:33]} Qxc5 {[%clk 00:00:22]} {[%emt 00:00:01]} 38.
dxc5 {[%clk 00:02:15]} {[%emt 00:00:01]} Rd8 {[%clk 00:00:23]} {[%emt
00:00:04]} 39. Ba5 {[%clk 00:02:06]} {[%emt 00:00:14]} Rxf2 {[%clk 00:00:24]}
{[%emt 00:00:03]} 40. Bxd8 {[%clk 00:02:04]} {[%emt 00:00:07]} Re2 {[%clk
00:00:11]} {[%emt 00:00:19]} 41. Bxe7 {[%clk 00:01:54]} {[%emt 00:00:14]} Rxe3
{[%clk 00:00:15]} {[%emt 00:00:02]} 42. Rb1 {[%clk 00:01:55]} {[%emt 00:00:03]}
Rb3 {[%clk 00:00:19]} {[%emt 00:00:02]} 43. Rxb3 {[%clk 00:01:47]} {[%emt
00:00:13]} axb3 {[%clk 00:00:23]} {[%emt 00:00:01]} 44. Bf6 {[%clk 00:01:52]}
{[%emt 00:00:01]} Kf7 {[%clk 00:00:26]} {[%emt 00:00:02]} 45. Bb2 {[%clk
00:01:53]} {[%emt 00:00:02]} e3 {[%clk 00:00:22]} {[%emt 00:00:10]} 46. Kg2
{[%clk 00:01:42]} {[%emt 00:00:18]} Bg4 {[%clk 00:00:21]} {[%emt 00:00:04]} 47.
h3 {[%clk 00:01:26]} {[%emt 00:00:21]} Bh5 {[%clk 00:00:15]} {[%emt 00:00:11]}
48. a4 {[%clk 00:01:15]} {[%emt 00:00:21]} Ke6 {[%clk 00:00:17]} {[%emt
00:00:01]} 49. c6 {[%clk 00:01:20]} bxc6 {[%clk 00:00:19]} {[%emt 00:00:02]} 50.
a5 {[%clk 00:01:24]} Kd7 {[%clk 00:00:13]} {[%emt 00:00:17]} 51. a6 {[%clk
00:01:19]} {[%emt 00:00:19]} Kc7 {[%emt 00:00:11]} 52. Bd4 {[%clk 00:01:21]} c5
{[%clk 00:00:16]} {[%emt 00:00:03]} 53. Bb2 {[%clk 00:01:12]} {[%emt 00:00:30]}
Kb6 {[%clk 00:00:19]} 54. a7 {[%clk 00:01:16]} Kxa7 {[%clk 00:00:23]} 55. Kg3
{[%clk 00:01:21]} Kb6 {[%clk 00:00:26]} {[%emt 00:00:07]} 56. Kg2 {[%clk
00:01:25]} Kb5 {[%clk 00:00:30]} 0-1